Cogmind - Beta 14 @@@ ROGUE MODE // 2025.01.18 @ 10:52:07 Player: human Result: Destroyed by 8B-YCV(R) with Subdweller Laser Performance ------------- Evolutions (0) 0 Regions Visited (3) 600 Robots Destroyed (12) 60 Value Destroyed (380) 380 Prototype IDs (0) 0 Alien Tech Used (0) 0 Bonus (60) 60 TOTAL SCORE: 1100 Bonus ------- Follower Combat Kills 60 Cogmind --------- Core Integrity 0/250 Matter 264/300 Energy 98/100 System Corruption 0% Temperature Cool (7) Movement Treading (160) Location -10/Subcaves Parts ------- > --- POWER (1) -------- (None) > --- PROPULSION (2) --- Light Treads > --- UTILITY (2) ------ (None) > --- WEAPON (2) ------- Subdweller Shrapnel Launcher > --- INVENTORY (5) ---- Small Storage Unit Medium Storage Unit Medium Laser Peak State ------------ > --- POWER ------------ Ion Engine > --- PROPULSION ------- Light Treads Light Treads > --- UTILITY ---------- Scrap Shield > --- WEAPON ----------- Assault Rifle Flamer > --- INVENTORY -------- Small Storage Unit Medium Storage Unit Medium Laser Subdweller Shrapnel Launcher [Rating: 10] Favorites ----------- Power Ion Engine Engine Ion Engine Propulsion Light Treads Treads Light Treads Wheel Compact Wheel Utility Medium Storage Unit Storage Medium Storage Unit Protection Scrap Shield Weapon Medium Laser Energy Gun Medium Laser Ballistic Gun Assault Rifle Launcher Subdweller Shrapnel Launcher Special Weapon Flamer Build | -11 -10 -10 -10 ------- Run | Yrd Mat Min Sub Slots Evolved . | . . . . Power . | . . . . Propulsion . | . . . . Utility . | . . . . Weapon . | . . . . Parts Attached 16 | 6 3 3 4 Power 2 | 1 . 1 . Engine 2 | 1 . 1 . Core . | . . . . Reactor . | . . . . Propulsion 6 | 2 2 1 1 Treads 4 | 2 . 1 1 Leg . | . . . . Wheel 2 | . 2 . . Hover . | . . . . Flight . | . . . . Utility 3 | 1 1 . 1 Device . | . . . . Storage 2 | 1 1 . . Processor . | . . . . Hackware . | . . . . Protection 1 | . . . 1 Artifact . | . . . . Weapon 5 | 2 . 1 2 Energy Gun 1 | 1 . . . Energy Cannon . | . . . . Ballistic Gun 2 | 1 . 1 . Ballistic Cannon . | . . . . Launcher 1 | . . . 1 Special Weapon 1 | . . . 1 Impact Weapon . | . . . . Slashing Weapon . | . . . . Piercing Weapon . | . . . . Special Melee Weapon . | . . . . Unidentified Prototypes . | . . . . Parts Lost 8 | . . 3 5 Power 2 | . . 1 1 Propulsion 2 | . . 1 1 Utility 1 | . . . 1 Weapon 3 | . . 1 2 Highest Loss Streak 5 | . . 2 5 To Critical Strikes 1 | . . . 1 Average Slot Usage (%) 83 | . 85 84 76 Engine 13 | . 14 14 11 Treads 12 | . . 12 28 Wheel 15 | . 28 14 . Storage 12 | . 14 14 . Energy Gun 13 | . 14 14 10 Ballistic Gun 13 | . 14 13 11 Peak Build Rating 10 | 6 7 6 10 Average Rating 6 | 4 6 5 7 On Entrance 4 | . 6 6 6 Naked Turns . | . . . . Heaviest Build 27 | 12 17 19 27 Greatest Support 40 | 40 26 26 40 Greatest Overweight (x) 3 | 3 . 1 1 Average Overweight (x) . | . . . . Largest Inventory Capacity 10 | 8 10 10 10 Average Capacity 9 | 7 9 10 5 Most Carried 7 | 6 7 7 5 Average Carried 5 | 5 6 4 4 Final Capacity 10 | 8 10 10 5 Final Carried 7 | 6 7 4 3 Class Distribution -------------------- 100% | Mutant Dominant Class ---------------- Mutant | -10/Materials Mutant | -10/Mines Mutant | -10/Subcaves Resources | -11 -10 -10 -10 ----------- Run | Yrd Mat Min Sub Matter Collected 411 | 190 145 47 29 Remotely . | . . . . Salvage Created 410 | . 197 150 63 Parts 30 | . 8 13 9 Haulers Intercepted . | . . . . Recyclers Shooed . | . . . . Parts Field Recycled . | . . . . Retrieved Matter . | . . . . Parts Self-Destructed 6 | . . . 6 Prevented . | . . . . Kills | -11 -10 -10 -10 ------- Run | Yrd Mat Min Sub Combat Hostiles Destroyed 12 | . 4 5 3 Guns 9 | . 4 5 . AOE 3 | . . . 3 Classes Destroyed 3 | . 1 1 1 Swarmer 3 | . . 3 . Grunt 6 | . 4 2 . Subdweller 3 | . . . 3 Best Kill Streak 3 | . 2 3 3 Combat Bots Only 3 | . 2 3 3 Max Kills in Single Turn 3 | . 1 2 3 Gunslinging 1 | . . 1 . Exploded 3 | . . . 3 Melee . | . . . . Uniques/NPCs Destroyed . | . . . . Combat | -11 -10 -10 -10 -------- Run | Yrd Mat Min Sub Hostile Shots Fired 99 | . 30 30 39 Missed 26 | . 9 8 9 Damage Taken 1290 | . 277 264 749 Core 265 | . 95 82 88 Absorbed by Shields . | . . . . Core Remaining (%) 100 | 100 . . . Volleys Fired 28 | . 15 9 4 Largest 2 | . 2 2 2 Hottest 120 | . 70 70 120 Shots Fired 54 | . 30 18 6 Gun 50 | . 30 18 2 Cannon . | . . . . Launcher 2 | . . . 2 Special 2 | . . . 2 Kinetic 28 | . 15 9 4 Thermal 26 | . 15 9 2 Explosive . | . . . . Electromagnetic . | . . . . Robot Hit Streak 14 | . 11 8 14 Robot Miss Streak 3 | . 3 3 . Penetration Max . | . . . . Secondary Targets 3 | . 2 1 . Max Gunslinging Chain 1 | . 1 1 . Shots Hit Robots 40 | . 21 13 6 Core Hits 25 | . 9 8 8 Critical Kills . | . . . . Critical Parts Destroyed . | . . . . Critical Strikes 1 | . 1 . . Burn 1 | . 1 . . Melee Attacks . | . . . . Impact . | . . . . Slashing . | . . . . Piercing . | . . . . Sneak Attacks . | . . . . Combat Hostiles . | . . . . Follow-up Attacks . | . . . . Damage Inflicted 1000 | . 266 166 568 Guns 454 | . 266 166 22 Cannons . | . . . . Explosions 525 | . . . 525 Melee . | . . . . Ramming . | . . . . Kinetic 767 | . 129 91 547 Thermal 233 | . 137 75 21 Explosive . | . . . . Electromagnetic . | . . . . Impact . | . . . . Slashing . | . . . . Piercing . | . . . . Highest Corruption . | . . . . Average Corruption . | . . . . Corruption Purged . | . . . . Corruption Blocked . | . . . . Overload Shots . | . . . . Overflow Damage . | . . . . Projectiles . | . . . . Explosions . | . . . . Melee . | . . . . Knockbacks . | . . . . Impact . | . . . . Kinetic . | . . . . Secondary . | . . . . Self-Inflicted Damage 104 | . . . 104 Shots 2 | . . . 2 Rammed . | . . . . Targets Rammed . | . . . . Kicked . | . . . . Crushed . | . . . . Highest Temperature 153 | . 153 87 2 Average Temperature 56 | . 69 35 2 Received Heat Transfer 327 | . 144 123 60 Siege Activations . | . . . . Robots Corrupted . | . . . . Combat Hostiles . | . . . . Parts Fried . | . . . . Impact Corruptions . | . . . . Robots Melted . | . . . . Combat Hostiles . | . . . . Parts Melted 1 | . 1 . . Heat Transferred 863 | . 481 222 160 Parts Sabotaged . | . . . . Parts Stolen . | . . . . Parts Stripped . | . . . . Power Chain Reactions . | . . . . Alert | -11 -10 -10 -10 ------- Run | Yrd Mat Min Sub Peak Influence 180 | . 180 130 . Initial 70 | . . 70 . Average 55 | . 83 54 . Maximum Alert Level . | . . . . Low Security (%) 100 | 100 100 100 . Level 1 . | . . . . Level 2 . | . . . . Level 3 . | . . . . Level 4 . | . . . . Level 5 . | . . . . High Security . | . . . . Max Security . | . . . . Squads Dispatched 2 | . 2 . . Investigation . | . . . . Extermination . | . . . . Reinforcement 2 | . 2 . . Assault . | . . . . Garrison . | . . . . Intercept . | . . . . Searches Triggered . | . . . . Construction Impeded . | . . . . Haulers Reinforced . | . . . . Active Scanning Responses . | . . . . Cargo Convoy Interrupts . | . . . . Stealth | -11 -10 -10 -10 --------- Run | Yrd Mat Min Sub Distress Signals 1 | . 1 . . Communications Jammed . | . . . . Distress Signals . | . . . . Times Spotted 24 | . 8 6 10 Peak Tracking Total 8 | . 4 3 8 Tactical Retreats 2 | . 1 1 . Traps | -11 -10 -10 -10 ------- Run | Yrd Mat Min Sub Traps Triggered 2 | . 1 . 1 Indirectly . | . . . . Trap Hack Attempts . | . . . . Triggered . | . . . . Disarmed . | . . . . Reprogrammed . | . . . . Reused . | . . . . Traps Extracted . | . . . . Installed . | . . . . Triggered . | . . . . Machines | -11 -10 -10 -10 ---------- Run | Yrd Mat Min Sub Machines Disabled . | . . . . Max in Single Turn . | . . . . Machines Repaired . | . . . . Machines Dismantled . | . . . . Machines Sabotaged . | . . . . Overloaded Fab Kills . | . . . . Hacking | -11 -10 -10 -10 --------- Run | Yrd Mat Min Sub Machines Accessed 2 | . 2 . . Terminals 2 | . 2 . . Fabricators . | . . . . Repair Stations . | . . . . Recycling Units . | . . . . Scanalyzers . | . . . . Garrison Access . | . . . . Total Hacks 7 | . 7 . . Successful 2 | . 2 . . Failed 5 | . 5 . . Catastrophic 1 | . 1 . . Database Lockouts . | . . . . Manual 5 | . 5 . . Terminals 7 | . 7 . . Fabricators . | . . . . Repair Stations . | . . . . Recycling Units . | . . . . Scanalyzers . | . . . . Garrison Access . | . . . . Terminal Hacks 1 | . 1 . . Zone Layout 1 | . 1 . . Fabricator Hacks . | . . . . Repair Station Hacks . | . . . . Recycling Unit Hacks . | . . . . Scanalyzer . | . . . . Garrison Access Hacks . | . . . . Unauthorized Hacks 1 | . 1 . . Terminals 1 | . 1 . . Botnet 1 | . 1 . . Fabricators . | . . . . Repair Stations . | . . . . Recycling Units . | . . . . Scanalyzers . | . . . . Garrison Access . | . . . . Data Cores Recovered . | . . . . Used . | . . . . Hacking Detections 2 | . 2 . . Full Trace Events . | . . . . Feedback Events . | . . . . Feedback Blocked . | . . . . Robot Schematics Acquired . | . . . . Robots Built . | . . . . Authchips . | . . . . Time . | . . . . Total Robot Build Rating . | . . . . Part Schematics Acquired . | . . . . Parts Built . | . . . . Authchips . | . . . . Time . | . . . . Total Part Build Rating . | . . . . Parts Repaired . | . . . . Time . | . . . . Parts Recycled . | . . . . Recycled Matter . | . . . . Retrieved Matter . | . . . . Retrieved Components . | . . . . Parts Scanalyzed . | . . . . Part Schematics Acquired . | . . . . Parts Damaged . | . . . . Bothacking | -11 -10 -10 -10 ------------ Run | Yrd Mat Min Sub Used RIF Installer . | . . . . Robots Hacked . | . . . . Non-combat . | . . . . Combat . | . . . . Robot Hacks Applied . | . . . . Relay Couplers Released . | . . . . Fabnet Peak Effective % . | . . . . Robots Rewired . | . . . . Allies Hacked . | . . . . Hacks Repelled . | . . . . Allies | -11 -10 -10 -10 -------- Run | Yrd Mat Min Sub Total Allies 3 | . . 3 . Largest Group 3 | . . 3 3 Highest-Rated Group 40 | . . 40 40 Highest-Rated Ally 16 | . . 16 16 Total Orders . | . . . . Ally Attacks 16 | . . . 16 Total Damage 164 | . . . 164 Kills 2 | . . . 2 Allies Corrupted . | . . . . Allies Melted . | . . . . Intel | -11 -10 -10 -10 ------- Run | Yrd Mat Min Sub Robot Analysis Total . | . . . . Derelict Logs Recovered 1 | . . 1 . Drone Launches . | . . . . Drone Recoveries . | . . . . Exploration | -11 -10 -10 -10 ------------- Run | Yrd Mat Min Sub Turns Passed 1533 | 83 191 1137 122 Spaces Moved 961 | 49 157 692 63 Core 20 | 20 . . . Treads 89 | 29 . . 60 Legs . | . . . . Wheels 852 | . 157 692 3 Hover . | . . . . Flight . | . . . . Fastest Speed 50 | 50 90 90 115 Average Speed 112 | 140 90 111 157 Slowest Speed 200 | 200 90 115 160 Overloaded Moves . | . . . . Propulsion Burnouts . | . . . . Robots Hopped . | . . . . Cave-ins Triggered . | . . . . Exploration Rate (%) 39 | 4 45 100 7 Regions Visited 3 Branch Regions 2 Pre-discovered Areas 1 | . . 1 . Known Exits Taken . | . . . . Unknown Exits Taken 3 | 1 1 1 . Scrap Searched 2 | . . 1 1 Spaces Dug . | . . . . Terrain Destroyed 40 | . . . 40 Melee . | . . . . Projectile . | . . . . AOE 40 | . . . 40 Terrain Rammed . | . . . . Walls Destroyed . | . . . . Machines Disabled . | . . . . Actions | -11 -10 -10 -10 --------- Run | Yrd Mat Min Sub Total 1350 | 61 175 1037 77 Wait 334 | . . 334 . Move 958 | 48 156 691 63 Hop . | . . . . Pick Up 9 | 7 . . 2 Fast Attach 7 | 5 1 . 1 Attach 5 | 1 . 3 1 Detach 2 | . 1 . 1 Swap 4 | . 2 . 2 Drop 3 | . . . 3 Fire 28 | . 15 9 4 Melee . | . . . . Ram . | . . . . Kick . | . . . . Crush . | . . . . Escape Stasis . | . . . . Rewire . | . . . . Trap . | . . . . Miscellaneous . | . . . . Route ------- -11/Scrapyard -10/Materials (discovered 4 exits: [*Mat x3] / [*Min]) -10/Mines (discovered 3 exits: [*Mat x2] / [*Sub]) -10/Subcaves History --------- Turn | Location | Event 34 | -11/Scrapyard | Discovered new exit (range 16) 84 | -11/Scrapyard | Entered Materials 123 | -10/Materials | Discovered new exit (range 15) 185 | -10/Materials | Discovered new exit (range 15) 245 | -10/Materials | Discovered new exit (range 11) 261 | -10/Materials | Discovered new exit (range 16) 275 | -10/Materials | Entered Mines 276 | -10/Mines | Learned location of Storage (-7) 288 | -10/Mines | Discovered new exit (range 13) 304 | -10/Mines | Build established: Mutant 742 | -10/Mines | Core integrity fell below 50% 750 | -10/Mines | Discovered new exit (range 3) 804 | -10/Mines | Assisted by bots powering up and referring to "LRC-V3" 822 | -10/Mines | Learned Materials stockpile data 1397 | -10/Mines | Discovered new exit (range 3) 1412 | -10/Mines | Entered Subcaves 1412 | -10/Subcaves | Accompanied by 3 allies 1414 | -10/Subcaves | Ambushed by Subdwellers from Twisted Machinery 1445 | -10/Subcaves | Shifting Twisted Machinery released Flamer 1456 | -10/Subcaves | Shifting Twisted Machinery released Sub. Shrapnel Launcher 1502 | -10/Subcaves | Ambushed by swarm of Subdwellers 1502 | -10/Subcaves | Ambushed by Subdwellers from Twisted Machinery 1517 | -10/Subcaves | Core integrity fell below 20% 1534 | -10/Subcaves | Destroyed by 8B-YCV(R) with Subdweller Laser Last Messages --------------- Machinery. 01509_ Flamer destroyed. 01511_ Scrap Shield destroyed. 01511_ Assault Rifle destroyed. 01513_ Critical hit (Destroy). 01513_ Ion Engine destroyed. 01513_ N8-GTY(R) destroyed. 01514_ 0E-UD0(R) destroyed. 01514_ 03-VWQ(R) destroyed. 01514_ Q5-HDG(R) destroyed. 01518_ 7J-QMG(R) affixes Scrap Shield Fragment to Scrap Shield. 01520_ IN-AZH(R) affixes Scrap Shield Fragment to Scrap Shield. 01523_ 7J-QMG(R) suffers critical hit (Destroy). 01523_ 7J-QMG(R) knocked back. 01524_ 8B-YCV(R) affixes Scrap Shield Fragment to Scrap Shield. 01527_ Acquired 9 matter. 01532_ Lgt. Treads destroyed. Map ----- +----------------------------------------------------+ | ??????????## ##" ###?#""#?????????????????????? | | ???????????## ""="#?####?????????????????????? | | ????# ??????## =""" #??????????????????????????? | | ????# ########*%"==##??????????????????????????? | | ???# ?# ![ "#???????????????????????????? | | ??? ?### ###???????????????????????????? | | ?? ## "" #????????????????????????????? | | ?? " ##????????????????????????????? | | ?? #?????????????????????????????? | | ?? # ##????????????????????????????? | | ?? # ### ##???????????????????????????? | | ??? # #####%##??????????????????????????? | | ???????? ## ?# ###????????????????????????? | | ?????????#"" !!"#####%[### #??????????????????? | | ?????????# [% #??# * #?????????????????????? | | ?????????# & #?## ## #?????????????????? | | ?????????# * %! ###"##? #?????????????????? | | ?????????# ! ! "## ##??? ??????????????? | | ?????????# " [ # ##????# # ???????????? | | ?????????##"" & ##??????# ?##???????????? | | ??????????#### ######???# ##?????????????? | | ?????????????##### R# #????# #??????????????? | | ????????????????# #### ##?????# #??????????????? | | ?????????????????#???## ##????? #??????????????? | | ??????????????????????## ##????? ??????????????? | | ???????????????????????##@#?????? ?????????????? | | ????????????????????????# #?????????????????????? | | ????????????????????????### #????????????????????? | | ???????????????????????????# #???????????????????? | | ????????????????????????????# ??????????????????? | | ?????????????????????????????## ?????????????????? | | ????????????????????????????????#????????????????? | | ?????????????????????????????????????????????????? | | ?????????????????????????????????????????????????? | | ?????????????????????????????????????????????????? | | ?????????????????????????????????????????????????? | | ?????????????????????????????????????????????????? | | ?????????????????????????????????????????????????? | | ?????????????????????????????????????????????????? | | ?????????????????????????????????????????????????? | | ?????????????????????????????????????????????????? | | ?????????????????????????????????????????????????? | | ?????????????????????????????????????????????????? | | ?????????????????????????????????????????????????? | | ?????????????????????????????????????????????????? | | ?????????????????????????????????????????????????? | | ?????????????????????????????????????????????????? | | ?????????????????????????????????????????????????? | | ?????????????????????????????????????????????????? | | ?????????????????????????????????????????????????? | +----------------------------------------------------+ Best States ------------- Heat Dissipation 25 Energy Generation 10 Energy Capacity 250 Matter Stores 300 Matter Capacity 300 Sight Range 16 Terrain Scan Density 10 Armor Coverage 800 Evasion (%) 42 Recoil Reduction 2 Item Schematics ----------------- None Robot Schematics ------------------ None Fabricated ------------ Nothing Alien Tech Used ----------------- None Achievements -------------- None Challenges ------------ None Game ------ Seed DrainedGodSlayer Manual? 0 Play Time 00:15:17 Cumulative 75.5 hours Start 2025.01.18 @ 10:36:36 End 2025.01.18 @ 10:52:07 Sessions 1 Manual Loads 0 Difficulty Rogue Special Mode None Game No. 59 Rogue 59 Adventurer 0 Explorer 0 Win Type - Total 0 Types 0/0/0/0/0/0/0/0/0 Lore% 22 Gallery% 40 Achievement% 32 Wizard Run 0 Options --------- Layout 1 ASCII 0 Keyboard 0 Movement Mouse Keybinds 0 Fullscreen 1 Font 24/Smallcaps Map View 50x35 Zoom Use 0% Tactical HUD 1 Map Filters NONE Filters NONE Steam 1 RUN: 396d7874-778a-48b9-a76a-258879e089c3